Cogmind - Beta 10 X2 @@@ ROGUE MODE // 2020.08.29 @ 18:16:34 Player: Torako Result: Destroyed by B-75 Beast with Heavy Machine Gun Performance ------------- Evolutions (4) 2000 Regions Visited (18) 3600 Robots Destroyed (212) 1060 Value Destroyed (9019) 9019 Prototype IDs (5) 100 Alien Tech Used (0) 0 Bonus (4931) 4931 TOTAL SCORE: 20710 Bonus ------- High Alert Combat Kills 669 Follower Combat Kills 472 Entered Garrisons 1200 Used RIF Installer 3000 Friendly Fire -410 Cogmind --------- Core Integrity 0/850 Matter 139/300 Energy 11/100 System Corruption 15% Temperature Cool (12) Movement Flying (520) Ox6 Location -6/Garrison Parts ------- > --- POWER (2) -------- (None) > --- PROPULSION (4) --- VTOL Module > --- UTILITY (6) ------ Advanced Heat Sink High-capacity Storage Unit Relay Coupler [Grunt] (29) > --- WEAPON (3) ------- (None) > --- INVENTORY (12) --- High-capacity Matter Pod (0) Relay Coupler [NC] (31) Relay Coupler [NC] (23) Relay Coupler [NC] (29) Relay Coupler [NC] (23) Relay Coupler [Grunt] (27) Relay Coupler [Sentry] (25) Relay Coupler [Sentry] (22) Relay Coupler [Hunter] (17) Relay Coupler [Hunter] (19) Relay Coupler [Behemoth] (10) Power Sword Peak State ------------ > --- POWER ------------ Fission Core Fission Core > --- PROPULSION ------- Armored Huge Wheel Armored Huge Wheel > --- UTILITY ---------- Large Storage Unit High-capacity Storage Unit High-capacity Storage Unit Advanced Targeting Computer Advanced Targeting Computer Hacking Suite > --- WEAPON ----------- Force Rifle Precision Assault Rifle Heavy Machine Gun > --- INVENTORY -------- Light Fission Core Reinforced Antimatter Reactor Light Treads Advanced Medium Treads Aluminum Leg Carbon-fiber Leg Carbon-fiber Leg High-capacity Matter Pod Relay Coupler [NC] Relay Coupler [NC] Relay Coupler [NC] Relay Coupler [NC] Relay Coupler [Grunt] Relay Coupler [Grunt] Relay Coupler [Grunt] Relay Coupler [Grunt] Relay Coupler [Sentry] Relay Coupler [Sentry] Relay Coupler [Sentry] Relay Coupler [Hunter] Relay Coupler [Hunter] Relay Coupler [Behemoth] Electrolaser Heavy Plasma Cannon Remote Datajack [Rating: 61] Favorites ----------- Power Fission Core Engine Deuterium Engine Power Core Fission Core Reactor Reinforced Antimatter Reactor Propulsion Light Treads Treads Light Treads Leg Carbon-fiber Leg Wheel Armored Huge Wheel Flight Unit VTOL Module Utility High-capacity Storage Unit Device Improved Heat Sink Storage High-capacity Storage Unit Processor Advanced Targeting Computer Hackware Relay Coupler [Grunt] Protection Light Armor Plating Weapon Flak Gun Energy Gun Improved EM Shotgun Energy Cannon Light EM Pulse Cannon Ballistic Gun Flak Gun Ballistic Cannon Flak Cannon Launcher Shock Bomb Launcher Special Weapon Remote Datajack Slashing Weapon Katana Special Melee Weapon Improved Datajack Build | -11 -10 -10 -9 -9 -9 -8 -8 -8 -7 -7 -7 -7 -6 -6 -6 -6 -6 -6 ------- Run | Scr Mat Min Mat Sto Gar Mat Gar Mat Fac Gar Fac Gar Fac Was Fac Gar Fac Gar Slots Evolved 8 | . . . 2 . . 2 . . 2 . . . 2 . . . . . Power 1 | . . . . . . . . . . . . . 1 . . . . . Propulsion 2 | . . . . . . 1 . . 1 . . . . . . . . . Utility 4 | . . . 2 . . 1 . . 1 . . . . . . . . . Weapon 1 | . . . . . . . . . . . . . 1 . . . . . Parts Attached 231 | . 4 1 12 10 7 41 8 6 4 35 2 35 8 1 7 13 23 14 Power 24 | . . . 3 . . 3 . 1 . 3 . 2 4 . . 4 4 . Engine 6 | . . . 3 . . 1 . . . 1 . . . . . 1 . . Core 16 | . . . . . . 2 . 1 . 2 . 2 4 . . 3 2 . Reactor 2 | . . . . . . . . . . . . . . . . . 2 . Propulsion 63 | . 2 . 5 4 2 6 2 2 2 11 1 12 1 1 1 . 6 5 Treads 25 | . . . 4 4 2 2 . . . 7 1 4 . . . . . 1 Leg 25 | . . . . . . 3 2 2 . 1 . 8 . . . . 6 3 Wheel 12 | . 2 . 1 . . 1 . . 2 3 . . 1 1 1 . . . Hover . | . . . . . . . . . . . . . . . . . . . Flight 1 | . . . . . . . . . . . . . . . . . . 1 Utility 56 | . 2 . 2 3 2 17 1 . 1 6 . 7 2 . 1 4 4 4 Device 5 | . . . . . . 2 . . . . . 1 . . . . 1 1 Storage 8 | . 2 . . . . 4 1 . . 1 . . . . . . . . Processor 8 | . . . 2 . . 4 . . . . . . 2 . . . . . Hackware 12 | . . . . . . 3 . . . 2 . 2 . . . 2 2 1 Protection 23 | . . . . 3 2 4 . . 1 3 . 4 . . 1 2 1 2 Artifact . | . . . . . . . . . . . . . . . . . . . Weapon 88 | . . 1 2 3 3 15 5 3 1 15 1 14 1 . 5 5 9 5 Energy Gun 16 | . . 1 . 1 2 4 1 . 1 2 . . . . . 1 1 2 Energy Cannon 11 | . . . . 1 . 1 2 1 . 3 . 1 . . 1 . . 1 Ballistic Gun 35 | . . . 2 1 1 7 . . . 2 . 7 . . 4 4 6 1 Ballistic Cannon 2 | . . . . . . . . 1 . 1 . . . . . . . . Launcher 8 | . . . . . . 2 1 . . 3 . 2 . . . . . . Special Weapon 10 | . . . . . . 1 1 1 . 2 . 2 . . . . 2 1 Impact Weapon . | . . . . . . . . . . . . . . . . . . . Slashing Weapon 5 | . . . . . . . . . . 2 1 2 . . . . . . Piercing Weapon . | . . . . . . . . . . . . . . . . . . . Special Melee Weapon 1 | . . . . . . . . . . . . . 1 . . . . . Unidentified Prototypes 5 | . . . . 2 . 1 . . . . . . . . 1 . 1 . Parts Lost 99 | . . 2 4 3 2 14 3 3 1 18 1 21 . 1 . 3 1 22 Power 10 | . . . 1 . . 2 . 1 . 2 . 2 . . . . . 2 Propulsion 34 | . . . 2 2 . 2 1 1 . 8 1 9 . . . . . 8 Utility 17 | . . . . . . 4 . . . 3 . 5 . . . . . 5 Weapon 38 | . . 2 1 1 2 6 2 1 1 5 . 5 . 1 . 3 1 7 Highest Loss Streak 22 | . . 2 4 3 1 3 2 3 1 8 1 4 . 1 . 2 1 22 Average Slot Usage (%) 95 | . 92 97 95 99 100 96 97 99 91 95 99 93 93 85 85 85 96 89 Engine 3 | . 14 14 10 11 11 5 . . . 1 7 2 . . . . . . Core 5 | . . . . . . 3 9 9 7 4 . 4 13 13 13 12 10 3 Treads 9 | . . . 18 22 22 6 3 . . 19 29 15 . . . . . . Leg 10 | . 23 . . . . 12 21 26 19 3 . 12 14 . . . 21 22 Wheel 4 | . 4 28 3 . . 7 . . 7 4 . . 5 13 13 13 1 . Storage 21 | . 21 28 22 22 22 18 25 27 23 23 23 23 20 20 20 20 20 19 Processor 4 | . . . 22 16 . 9 2 . . . . . 10 13 13 10 . . Hackware 8 | . . . . . . 2 18 18 15 15 15 12 8 6 . 3 16 13 Protection 5 | . . . . 5 22 10 . . 2 6 7 6 . . 5 4 2 4 Energy Gun 3 | . 14 14 1 5 9 3 5 . 2 3 7 . . . . . . 1 Energy Cannon 2 | . . . . . . . 6 15 4 3 . . . . . . . . Ballistic Gun 9 | . 14 12 16 16 12 13 6 . . 1 5 7 6 6 13 19 17 16 Naked Turns . | . . . . . . . . . . . . . . . . . . . Heaviest Build 129 | 11 39 39 45 57 57 97 95 96 99 105 105 112 107 107 117 118 129 129 Greatest Support 100 | 20 24 24 46 46 40 20 47 44 44 80 80 100 50 56 56 56 65 65 Greatest Overweight (x) 10 | . 1 1 1 1 1 8 4 2 9 10 1 2 3 1 2 2 3 2 Average Overweight (x) 2 | . . 1 . . 1 5 2 2 3 5 1 1 2 1 1 1 1 1 Largest Inventory Capacity 26 | . 16 16 16 16 16 20 26 26 26 26 26 26 26 26 26 26 26 26 Average Capacity 22 | . 11 16 16 16 16 18 24 26 26 26 26 26 26 26 26 26 26 25 Most Carried 26 | . 16 16 16 16 16 20 26 26 26 26 26 26 26 26 26 26 26 26 Average Carried 21 | . 7 15 15 15 15 17 22 25 25 23 25 24 23 25 25 25 25 24 Final Capacity 26 | 6 16 16 16 16 16 20 26 26 26 26 26 26 26 26 26 26 26 12 Final Carried 26 | 6 16 15 16 16 16 20 26 25 26 25 26 20 25 26 26 26 26 12 Class Distribution -------------------- 47% | Bothacker-Mutant 17% | Scavenger-Mutant 11% | Botlord-Mutant 10% | Mutant 7% | Botlord-Gunner 3% | Hauler-Mutant Dominant Class ---------------- Mutant | -10/Materials Mutant | -10/Mines Mutant | -9/Materials Scavenger-Mutant | -9/Storage Scavenger-Mutant | -9/Garrison Scavenger-Mutant | -8/Materials Bothacker-Mutant | -8/Garrison Bothacker-Mutant | -8/Materials Bothacker-Mutant | -7/Factory Bothacker-Mutant | -7/Garrison Bothacker-Mutant | -7/Factory Bothacker-Mutant | -7/Garrison Botlord-Mutant | -6/Factory Botlord-Mutant | -6/Waste Botlord-Mutant | -6/Factory Botlord-Gunner | -6/Garrison Botlord-Gunner | -6/Factory Botlord-Tank | -6/Garrison Resources | -11 -10 -10 -9 -9 -9 -8 -8 -8 -7 -7 -7 -7 -6 -6 -6 -6 -6 -6 ----------- Run | Scr Mat Min Mat Sto Gar Mat Gar Mat Fac Gar Fac Gar Fac Was Fac Gar Fac Gar Matter Collected 5940 | 200 53 31 199 237 134 1414 208 193 88 589 15 830 . . 71 964 642 72 Remotely . | . . . . . . . . . . . . . . . . . . . Salvage Created 8027 | . 89 15 393 845 334 2128 234 370 139 654 . 1125 . . 151 760 599 191 Parts 427 | . 4 . 33 53 17 118 14 19 9 32 . 55 . . 5 31 27 10 Haulers Intercepted . | . . . . . . . . . . . . . . . . . . . Recyclers Shooed 2 | . . . . . . 1 . . . . . . . . . . 1 . Parts Field Recycled . | . . . . . . . . . . . . . . . . . . . Retrieved Matter . | . . . . . . . . . . . . . . . . . . . Parts Self-Destructed . | . . . . . . . . . . . . . . . . . . . Prevented . | . . . . . . . . . . . . . . . . . . . Kills | -11 -10 -10 -9 -9 -9 -8 -8 -8 -7 -7 -7 -7 -6 -6 -6 -6 -6 -6 ------- Run | Scr Mat Min Mat Sto Gar Mat Gar Mat Fac Gar Fac Gar Fac Was Fac Gar Fac Gar Combat Hostiles Destroyed 200 | . 2 2 13 19 8 49 7 10 3 25 . 27 . . 4 18 7 6 Melee 6 | . . . 1 . . . . . . . . 5 . . . . . . Guns 138 | . 1 2 12 19 8 40 2 . 1 . . 18 . . 4 18 7 6 Cannons 21 | . . . . . . . 1 9 2 9 . . . . . . . . AOE 31 | . 1 . . . . 9 3 1 . 16 . 1 . . . . . . Classes Destroyed 14 | . 1 1 2 3 1 3 . . . 1 . . . . . 1 1 . Worker 2 | . . . . 1 . 1 . . . . . . . . . . . . Builder 1 | . . . . . . 1 . . . . . . . . . . . . Recycler 2 | . . . . . . 1 . . . . . . . . . . 1 . Operator 1 | . . . . . . . . . . . . . . . . . 1 . Watcher 4 | . . . . 1 . 2 . 1 . . . . . . . . . . Swarmer 77 | . . . 9 3 3 13 3 3 . 14 . 14 . . 3 7 . 5 Saboteur 1 | . . . . . . . . . . . . . . . . 1 . . Grunt 75 | . 2 . . 12 . 24 2 3 3 9 . 9 . . . 8 3 . Brawler 3 | . . . . . 3 . . . . . . . . . . . . . Duelist 6 | . . . . 1 1 . . . . 1 . 1 . . . 1 1 . Sentry 33 | . . . 4 3 1 10 2 3 . 1 . 4 . . 1 1 2 1 Demolisher 2 | . . 2 . . . . . . . . . . . . . . . . Hunter 3 | . . . . . . 2 . 1 . . . . . . . . . . Programmer 2 | . . . . . . . . . . 1 . . . . . . 1 . Best Kill Streak 14 | . 1 2 9 6 4 7 5 2 3 14 . 4 . . 3 6 3 5 Combat Bots Only 14 | . 1 2 9 6 4 5 5 2 3 14 . 4 . . 3 6 2 5 Max Kills in Single Turn 3 | . 1 1 1 1 2 3 2 1 1 3 . 2 . . 2 2 1 1 Gunslinging 1 | . . . . . 1 . . . . . . 1 . . 1 . . . Exploded 3 | . 1 . . . . 2 2 1 . 3 . 1 . . . . . . Melee 1 | . . . 1 . . . . . . . . 1 . . . . . . Uniques/NPCs Destroyed . | . . . . . . . . . . . . . . . . . . . Combat | -11 -10 -10 -9 -9 -9 -8 -8 -8 -7 -7 -7 -7 -6 -6 -6 -6 -6 -6 -------- Run | Scr Mat Min Mat Sto Gar Mat Gar Mat Fac Gar Fac Gar Fac Was Fac Gar Fac Gar Damage Taken 17017 | . 89 310 1182 804 197 2747 469 523 74 2594 199 3127 . 30 300 1231 555 2586 Core 2405 | . 30 60 207 52 . 390 32 79 . 346 10 329 . . 27 194 164 485 Absorbed by Shields 63 | . . . . . . . . . . . . . . . 23 40 . . Core Remaining (%) 41 | 100 . 64 . . 35 . . 8 . . . 2 . . . . . . Volleys Fired 566 | . 11 3 44 43 20 141 28 37 6 65 1 64 . . 10 47 30 16 Largest 3 | . 2 2 2 2 2 2 2 2 2 2 2 2 . . 3 3 3 3 Hottest 138 | . 60 76 56 68 90 98 112 112 113 113 108 56 . . 84 138 119 136 Shots Fired 1042 | . 22 5 67 85 39 247 50 52 10 86 2 112 . . 24 129 80 32 Gun 858 | . 22 5 67 85 39 228 32 . 3 15 2 99 . . 24 129 77 31 Cannon 138 | . . . . . . 9 15 51 7 55 . . . . . . . 1 Launcher 29 | . . . . . . 6 2 . . 13 . 8 . . . . . . Special 17 | . . . . . . 4 1 1 . 3 . 5 . . . . 3 . Kinetic 774 | . 11 2 56 64 22 192 17 20 6 32 1 99 . . 24 127 76 25 Thermal 47 | . . 2 11 . . 9 . . 3 11 1 . . . . 2 1 7 Explosive 15 | . . . . . . 6 2 . . 7 . . . . . . . . Electromagnetic 189 | . 11 1 . 21 17 36 30 31 1 33 . 8 . . . . . . Robot Hit Streak 19 | . 5 3 12 16 7 19 12 15 9 16 6 19 . . 15 13 8 7 Robot Miss Streak 12 | . 1 1 5 3 2 4 3 8 3 11 1 9 . . 5 6 12 12 Penetration Max 1 | . . . . . . 1 . . . . . . . . . . . 1 Secondary Targets 29 | . . 1 . 4 2 5 1 . . . . 4 . . 2 8 . 2 Max Gunslinging Chain 1 | . . 1 . 1 1 1 1 . . . . 1 . . 1 1 . 1 Shots Hit Robots 825 | . 15 4 42 69 29 178 35 42 9 62 4 119 1 . 20 102 69 25 Core Hits 533 | . 3 3 23 34 14 99 15 26 10 71 3 84 . . 9 62 55 22 Critical Hits 11 | . . . 1 . . 5 1 . . 2 . . . . 2 . . . Critical Kills 4 | . . . . . . 2 . . . 1 . . . . 1 . . . Critical Parts Destroyed 6 | . . . 1 . . 3 1 . . . . . . . 1 . . . Melee Attacks 50 | . . . . . . . . . . 4 14 31 1 . . . . . Impact . | . . . . . . . . . . . . . . . . . . . Slashing 49 | . . . . . . . . . . 4 14 31 . . . . . . Piercing . | . . . . . . . . . . . . . . . . . . . Sneak Attacks 4 | . . . . . . . . . . 1 2 1 . . . . . . Combat Hostiles . | . . . . . . . . . . . . . . . . . . . Follow-up Attacks . | . . . . . . . . . . . . . . . . . . . Damage Inflicted 18411 | . 175 65 585 949 372 5132 820 879 169 2990 254 2564 . . 324 1556 1118 459 Guns 11017 | . 139 65 546 945 372 3593 409 . 57 176 62 1196 . . 324 1556 1118 459 Cannons 2051 | . . . . . . 125 209 762 112 843 . . . . . . . . Explosions 4175 | . 36 . . . . 1414 202 117 . 1889 . 517 . . . . . . Melee 1125 | . . . . . . . . . . 82 192 851 . . . . . . Ramming 43 | . . . 39 4 . . . . . . . . . . . . . . Kinetic 10010 | . 60 25 502 566 197 3074 260 244 87 394 40 1196 . . 324 1508 1118 415 Thermal 1958 | . 36 29 44 . . 728 . 117 57 705 22 128 . . . 48 . 44 Explosive 2013 | . . . . . . 811 202 . . 1000 . . . . . . . . Electromagnetic 3262 | . 79 11 . 379 175 519 358 518 25 809 . 389 . . . . . . Impact . | . . . . . . . . . . . . . . . . . . . Slashing 1125 | . . . . . . . . . . 82 192 851 . . . . . . Piercing . | . . . . . . . . . . . . . . . . . . . Highest Corruption 15 | . . . . . 4 4 4 4 . . 1 1 . 9 12 12 15 15 Average Corruption 5 | . . . . . 4 4 4 4 . . 1 1 . 9 10 12 13 15 Corruption Purged . | . . . . . . . . . . . . . . . . . . . Effects 227 | . . . . . 1 39 15 19 . . 1 3 . 4 26 52 52 15 Message Errors 44 | . . . . . . 7 4 7 . . . 2 . 1 6 6 8 3 Matter Fused 38 | . . . . . . 9 4 3 . . . . . 1 5 5 10 1 Heat Flow Errors 18 | . . . . . 1 5 1 1 . . . . . 1 2 2 5 . Energy Discharges 19 | . . . . . . 6 . 1 . . 1 . . 1 . 5 4 1 Data Loss (minor) 18 | . . . . . . 5 1 4 . . . . . . 2 2 4 . Data Loss (major) 3 | . . . . . . . . . . . . . . . . 2 1 . Misfires 4 | . . . . . . . . . . . . . . . 2 1 1 . Alerts 1 | . . . . . . . . . . . . . . . . 1 . . Misdirections 13 | . . . . . . . . . . . . . . . 3 4 5 1 Targeting Errors 59 | . . . . . . 7 5 3 . . . 1 . . 5 20 13 5 Weapon Failures 10 | . . . . . . . . . . . . . . . 1 4 1 4 Overload Shots . | . . . . . . . . . . . . . . . . . . . Overflow Damage 288 | . . . . . . 40 3 23 . 41 112 69 . . . . . . Projectiles 5 | . . . . . . . . 5 . . . . . . . . . . Explosions 113 | . . . . . . 40 3 18 . 41 . 11 . . . . . . Melee 170 | . . . . . . . . . . . 112 58 . . . . . . Knockbacks 11 | . . . . . . . . 2 3 6 . . . . . . . . Impact . | . . . . . . . . . . . . . . . . . . . Kinetic 10 | . . . . . . . . 2 2 6 . . . . . . . . Secondary 1 | . . . . . . . . . 1 . . . . . . . . . Self-Inflicted Damage 350 | . 37 . . . . 165 . . . 87 . 61 . . . . . . Shots 11 | . 1 . . . . 4 . . . 3 . 3 . . . . . . Rammed 15 | . . . 15 . . . . . . . . . . . . . . . Targets Rammed 17 | . . . 16 1 . . . . . . . . . . . . . . Kicked . | . . . . . . . . . . . . . . . . . . . Crushed 2 | . . . 1 1 . . . . . . . . . . . . . . Highest Temperature 401 | . 24 31 120 207 144 322 270 161 149 401 48 42 . 115 258 385 377 148 Average Temperature 84 | . 16 15 34 51 41 90 56 51 61 103 22 15 . 62 88 135 112 58 Received Heat Transfer 4038 | . 30 . 126 297 . 1008 243 99 42 720 36 552 . . 66 402 135 282 Effects 17 | . . . . . . 4 . . . 2 . . . . . 11 . . Shutdowns 6 | . . . . . . 1 . . . 1 . . . . . 4 . . Energy Bleed 3 | . . . . . . 1 . . . . . . . . . 2 . . Interference 3 | . . . . . . . . . . . . . . . . 3 . . Matter Decay 2 | . . . . . . . . . . . . . . . . 2 . . Short Circuit 2 | . . . . . . 1 . . . 1 . . . . . . . . Damage (minor) 1 | . . . . . . 1 . . . . . . . . . . . . Siege Activations . | . . . . . . . . . . . . . . . . . . . Robots Corrupted 4 | . . . . . . . 1 . . . . 3 . . . . . . Combat Hostiles 4 | . . . . . . . 1 . . . . 3 . . . . . . Parts Fried 17 | . . . . . . 3 . 4 . 2 . 8 . . . . . . Impact Corruptions . | . . . . . . . . . . . . . . . . . . . Robots Melted . | . . . . . . . . . . . . . . . . . . . Combat Hostiles . | . . . . . . . . . . . . . . . . . . . Parts Melted 2 | . . . . 1 . 1 . . . . . . . . . . . . Heat Transferred 2441 | . . 74 111 . . 735 . 100 111 936 50 150 . . . 74 . 100 Parts Sabotaged 3 | . . . . . . . . . . . . . . . . 3 . . Parts Stolen . | . . . . . . . . . . . . . . . . . . . Parts Stripped . | . . . . . . . . . . . . . . . . . . . Power Chain Reactions 14 | . 1 . . . . 5 . 2 . 5 . 1 . . . . . . Missiles Intercepted . | . . . . . . . . . . . . . . . . . . . Alert | -11 -10 -10 -9 -9 -9 -8 -8 -8 -7 -7 -7 -7 -6 -6 -6 -6 -6 -6 ------- Run | Scr Mat Min Mat Sto Gar Mat Gar Mat Fac Gar Fac Gar Fac Was Fac Gar Fac Gar Peak Influence 858 | . 96 40 245 260 462 701 565 310 212 858 527 730 394 137 200 504 313 28 Average Influence 352 | . 58 36 98 147 345 405 471 209 154 628 475 493 382 135 134 330 198 14 Maximum Alert Level 3 | . . . 1 1 2 3 2 1 1 3 2 3 1 . 1 2 1 . Low Security (%) 27 | . 100 100 84 77 17 . . 37 98 4 . . . 100 96 19 51 100 Level 1 32 | . . . 15 22 58 44 19 62 1 7 6 38 100 . 3 39 48 . Level 2 30 | . . . . . 23 54 80 . . 31 93 40 . . . 41 . . Level 3 9 | . . . . . . . . . . 55 . 20 . . . . . . Level 4 . | . . . . . . . . . . . . . . . . . . . Level 5 . | . . . . . . . . . . . . . . . . . . . High Security . | . . . . . . . . . . . . . . . . . . . Max Security . | . . . . . . . . . . . . . . . . . . . Squads Dispatched 24 | . 1 . . 6 . 10 . 1 1 . 1 . 1 . . . 3 . Investigation 11 | . . . . 2 . 6 . . 1 . . . 1 . . . 1 . Extermination 1 | . . . . . . . . . . . 1 . . . . . . . Reinforcement 7 | . 1 . . 2 . 2 . 1 . . . . . . . . 1 . Assault . | . . . . . . . . . . . . . . . . . . . Garrison 5 | . . . . 2 . 2 . . . . . . . . . . 1 . Intercept . | . . . . . . . . . . . . . . . . . . . Construction Impeded . | . . . . . . . . . . . . . . . . . . . Haulers Reinforced . | . . . . . . . . . . . . . . . . . . . Stealth | -11 -10 -10 -9 -9 -9 -8 -8 -8 -7 -7 -7 -7 -6 -6 -6 -6 -6 -6 --------- Run | Scr Mat Min Mat Sto Gar Mat Gar Mat Fac Gar Fac Gar Fac Was Fac Gar Fac Gar Distress Signals 13 | . 1 2 . 1 . 7 . . . 2 . . . . . . . . Communications Jammed 1 | . . . . . . . . . . . . . . . . . 1 . Distress Signals . | . . . . . . . . . . . . . . . . . . . Times Spotted 320 | . 5 4 16 21 8 85 10 20 4 40 1 47 3 6 6 20 9 15 Peak Tracking Total 11 | . 3 2 10 7 6 6 3 4 3 9 1 6 3 6 3 3 2 11 Tactical Retreats 36 | . . . 1 1 1 14 2 2 . 1 . 13 . . . . . 1 Traps | -11 -10 -10 -9 -9 -9 -8 -8 -8 -7 -7 -7 -7 -6 -6 -6 -6 -6 -6 ------- Run | Scr Mat Min Mat Sto Gar Mat Gar Mat Fac Gar Fac Gar Fac Was Fac Gar Fac Gar Traps Triggered 38 | . . . . . 2 3 6 . 1 3 2 11 1 . 2 3 4 . Indirectly 2 | . . . . . . . . . . . . 2 . . . . . . Trap Hack Attempts . | . . . . . . . . . . . . . . . . . . . Triggered . | . . . . . . . . . . . . . . . . . . . Disarmed . | . . . . . . . . . . . . . . . . . . . Reprogrammed . | . . . . . . . . . . . . . . . . . . . Reused . | . . . . . . . . . . . . . . . . . . . Traps Extracted . | . . . . . . . . . . . . . . . . . . . Installed . | . . . . . . . . . . . . . . . . . . . Triggered . | . . . . . . . . . . . . . . . . . . . Machines | -11 -10 -10 -9 -9 -9 -8 -8 -8 -7 -7 -7 -7 -6 -6 -6 -6 -6 -6 ---------- Run | Scr Mat Min Mat Sto Gar Mat Gar Mat Fac Gar Fac Gar Fac Was Fac Gar Fac Gar Machines Disabled 17 | . . . . 1 1 7 2 . . 2 1 1 . . . 2 . . Max in Single Turn 3 | . . . . 1 1 3 1 . . 1 . 1 . . . 1 . . Garrison Relay 8 | . . . . . 1 . 2 . . 2 . 1 . . . 2 . . Machines Sabotaged . | . . . . . . . . . . . . . . . . . . . Garrisons Compromised . | . . . . . . . . . . . . . . . . . . . Overloaded Fab Kills . | . . . . . . . . . . . . . . . . . . . Fab Network Shutdowns . | . . . . . . . . . . . . . . . . . . . Hacking | -11 -10 -10 -9 -9 -9 -8 -8 -8 -7 -7 -7 -7 -6 -6 -6 -6 -6 -6 --------- Run | Scr Mat Min Mat Sto Gar Mat Gar Mat Fac Gar Fac Gar Fac Was Fac Gar Fac Gar Machines Accessed 38 | . 2 . 4 8 . 9 . 5 2 . 3 . 1 . 1 . 3 . Terminals 29 | . 2 . 4 6 . 7 . 5 . . 2 . 1 . . . 2 . Fabricators . | . . . . . . . . . . . . . . . . . . . Repair Stations . | . . . . . . . . . . . . . . . . . . . Recycling Units 2 | . . . . 1 . . . . 1 . . . . . . . . . Scanalyzers 1 | . . . . . . 1 . . . . . . . . . . . . Garrison Access 6 | . . . . 1 . 1 . . 1 . 1 . . . 1 . 1 . Total Hacks 100 | . 7 . 11 21 . 24 . 15 3 . 9 . 3 . 1 . 6 . Successful 50 | . 4 . 6 12 . 13 . 7 2 . 3 . . . 1 . 2 . Failed 50 | . 3 . 5 9 . 11 . 8 1 . 6 . 3 . . . 4 . Catastrophic 4 | . . . 1 1 . 2 . . . . . . . . . . . . Database Lockouts . | . . . . . . . . . . . . . . . . . . . Manual 77 | . 7 . 11 14 . 18 . 13 . . 8 . 3 . . . 3 . Terminals 88 | . 7 . 11 18 . 21 . 15 . . 8 . 3 . . . 5 . Fabricators . | . . . . . . . . . . . . . . . . . . . Repair Stations . | . . . . . . . . . . . . . . . . . . . Recycling Units 4 | . . . . 2 . . . . 2 . . . . . . . . . Scanalyzers 2 | . . . . . . 2 . . . . . . . . . . . . Garrison Access 6 | . . . . 1 . 1 . . 1 . 1 . . . 1 . 1 . Terminal Hacks 17 | . 2 . 3 4 . 2 . 5 . . . . . . . . 1 . Robot Analysis 4 | . . . 1 2 . . . . . . . . . . . . 1 . Level Access Points 1 | . . . . . . . . 1 . . . . . . . . . . Branch Access Points 3 | . 1 . 1 . . 1 . . . . . . . . . . . . Terminal Index 1 | . . . . . . . . 1 . . . . . . . . . . Unreport Threat 3 | . . . 1 1 . 1 . . . . . . . . . . . . Locate Traps 1 | . 1 . . . . . . . . . . . . . . . . . Security Status 1 | . . . . . . . . 1 . . . . . . . . . . Patrol Status 1 | . . . . . . . . 1 . . . . . . . . . . Garrison Status 1 | . . . . . . . . 1 . . . . . . . . . . Recall Investigation 1 | . . . . 1 . . . . . . . . . . . . . . Fabricator Hacks . | . . . . . . . . . . . . . . . . . . . Repair Station Hacks . | . . . . . . . . . . . . . . . . . . . Recycling Unit Hacks 2 | . . . . 1 . . . . 1 . . . . . . . . . Report Inventory 2 | . . . . 1 . . . . 1 . . . . . . . . . Scanalyzer 2 | . . . . . . 2 . . . . . . . . . . . . Insert Component 1 | . . . . . . 1 . . . . . . . . . . . . Analyze 1 | . . . . . . 1 . . . . . . . . . . . . Garrison Access Hacks 6 | . . . . 1 . 1 . . 1 . 1 . . . 1 . 1 . Unlock Access 6 | . . . . 1 . 1 . . 1 . 1 . . . 1 . 1 . Unauthorized Hacks 23 | . 2 . 3 6 . 8 . 2 . . 2 . . . . . . . Terminals 22 | . 2 . 3 5 . 8 . 2 . . 2 . . . . . . . Track 2 | . . . . . . 2 . . . . . . . . . . . . Botnet 20 | . 2 . 3 5 . 6 . 2 . . 2 . . . . . . . Fabricators . | . . . . . . . . . . . . . . . . . . . Repair Stations . | . . . . . . . . . . . . . . . . . . . Recycling Units 1 | . . . . 1 . . . . . . . . . . . . . . Tunnel 1 | . . . . 1 . . . . . . . . . . . . . . Scanalyzers . | . . . . . . . . . . . . . . . . . . . Garrison Access . | . . . . . . . . . . . . . . . . . . . Data Cores Recovered . | . . . . . . . . . . . . . . . . . . . Used . | . . . . . . . . . . . . . . . . . . . Hacking Detections 28 | . 2 . 4 5 . 7 . 2 1 . 3 . 1 . 1 . 2 . Full Trace Events 7 | . . . . 1 . 3 . 1 . . . . 1 . . . 1 . Feedback Events 1 | . . . . . . . . . . . . . . . . . 1 . Corruption 1 | . . . . . . . . . . . . . . . . . 1 . Feedback Blocked . | . . . . . . . . . . . . . . . . . . . Robot Schematics Acquired . | . . . . . . . . . . . . . . . . . . . Robots Built . | . . . . . . . . . . . . . . . . . . . Matter . | . . . . . . . . . . . . . . . . . . . Time . | . . . . . . . . . . . . . . . . . . . Total Robot Build Rating . | . . . . . . . . . . . . . . . . . . . Part Schematics Acquired 1 | . . . . . . 1 . . . . . . . . . . . . Parts Built . | . . . . . . . . . . . . . . . . . . . Matter . | . . . . . . . . . . . . . . . . . . . Time . | . . . . . . . . . . . . . . . . . . . Total Part Build Rating . | . . . . . . . . . . . . . . . . . . . Parts Repaired . | . . . . . . . . . . . . . . . . . . . Time . | . . . . . . . . . . . . . . . . . . . Parts Recycled . | . . . . . . . . . . . . . . . . . . . Recycled Matter . | . . . . . . . . . . . . . . . . . . . Retrieved Matter . | . . . . . . . . . . . . . . . . . . . Retrieved Components . | . . . . . . . . . . . . . . . . . . . Parts Scanalyzed 1 | . . . . . . 1 . . . . . . . . . . . . Part Schematics Acquired 1 | . . . . . . 1 . . . . . . . . . . . . Parts Damaged 1 | . . . . . . 1 . . . . . . . . . . . . Bothacking | -11 -10 -10 -9 -9 -9 -8 -8 -8 -7 -7 -7 -7 -6 -6 -6 -6 -6 -6 ------------ Run | Scr Mat Min Mat Sto Gar Mat Gar Mat Fac Gar Fac Gar Fac Was Fac Gar Fac Gar Used RIF Installer 6 | . . . . . 1 . 1 . . 1 . 1 . . . 1 . 1 Hotswap 1 | . . . . . . . . . . 1 . . . . . . . . Threat Obfuscator 1 | . . . . . . . . . . . . 1 . . . . . . Signal Jammer 1 | . . . . . . . . . . . . . . . . 1 . . Zone Cloak 1 | . . . . . . . 1 . . . . . . . . . . . Robot Detection 1 | . . . . . . . . . . . . . . . . . . 1 Robots Hacked 13 | . . . . . . 2 1 1 . 3 . 4 1 . . . 1 . Non-combat 3 | . . . . . . 1 . 1 . . . . . . . . 1 . Combat 10 | . . . . . . 1 1 . . 3 . 4 1 . . . . . Robot Hacks Applied 17 | . . . . . . 4 1 1 . 3 . 4 1 . . . 3 . parse_system 1 | . . . . . . . . . . . . 1 . . . . . . purge_threat 5 | . . . . . . 3 . 1 . . . . . . . . 1 . recall_investigation 1 | . . . . . . . . . . . . . . . . . 1 . amplify_resonance 1 | . . . . . . . . . . . . . . . . . 1 . overwrite_iff 4 | . . . . . . 1 1 . . 1 . 1 . . . . . . streamctrl_high 4 | . . . . . . . . . . 1 . 2 1 . . . . . formatsys_high 1 | . . . . . . . . . . 1 . . . . . . . . Relay Couplers Released 29 | . . . . . 4 . 7 . . 7 . 4 . . . 7 . . Machine Destruction 29 | . . . . . 4 . 7 . . 7 . 4 . . . 7 . . Attached 11 | . . . . . . 3 . . . 2 . 2 . . . 1 2 1 Robots Rewired . | . . . . . . . . . . . . . . . . . . . Allies Hacked . | . . . . . . . . . . . . . . . . . . . Hacks Repelled . | . . . . . . . . . . . . . . . . . . . Allies | -11 -10 -10 -9 -9 -9 -8 -8 -8 -7 -7 -7 -7 -6 -6 -6 -6 -6 -6 -------- Run | Scr Mat Min Mat Sto Gar Mat Gar Mat Fac Gar Fac Gar Fac Was Fac Gar Fac Gar Total Allies 12 | . . 3 . . . 1 1 . . 3 . 3 1 . . . . . Largest Group 3 | . . 3 . . . 1 1 . . 2 1 2 1 . . . . . Highest-Rated Group 113 | . . 40 . . . 16 16 . . 113 81 81 29 . . . . . Highest-Rated Ally 81 | . . 16 . . . 16 16 . . 81 81 81 29 . . . . . Total Orders . | . . . . . . . . . . . . . . . . . . . Ally Attacks 39 | . . 1 . . . 4 2 . . 15 3 13 1 . . . . . Total Damage 1397 | . . 17 . . . 46 33 . . 814 22 445 20 . . . . . Kills 15 | . . . . . . 1 . . . 9 1 4 . . . . . . Allies Corrupted . | . . . . . . . . . . . . . . . . . . . Allies Melted . | . . . . . . . . . . . . . . . . . . . Intel | -11 -10 -10 -9 -9 -9 -8 -8 -8 -7 -7 -7 -7 -6 -6 -6 -6 -6 -6 ------- Run | Scr Mat Min Mat Sto Gar Mat Gar Mat Fac Gar Fac Gar Fac Was Fac Gar Fac Gar Robot Analysis Total 4 | . . . 1 2 . . . . . . . . . . . . 1 . Derelict Logs Recovered 1 | . . 1 . . . . . . . . . . . . . . . . Drone Launches . | . . . . . . . . . . . . . . . . . . . Drone Recoveries . | . . . . . . . . . . . . . . . . . . . Exploration | -11 -10 -10 -9 -9 -9 -8 -8 -8 -7 -7 -7 -7 -6 -6 -6 -6 -6 -6 ------------- Run | Scr Mat Min Mat Sto Gar Mat Gar Mat Fac Gar Fac Gar Fac Was Fac Gar Fac Gar Turns Passed 10947 | . 267 136 477 470 474 2169 536 783 246 1377 426 1252 311 101 387 560 831 144 Spaces Moved 5208 | 1 140 126 198 176 222 972 209 353 149 598 210 485 216 87 274 299 439 54 Core . | . . . . . . . . . . . . . . . . . . . Treads 1411 | . . . 157 176 222 84 69 . . 216 210 277 . . . . . . Legs 1304 | 1 98 . . . . . 140 353 63 . . 208 19 . . . 368 54 Wheels 2493 | . 42 126 41 . . 888 . . 86 382 . . 197 87 274 299 71 . Hover . | . . . . . . . . . . . . . . . . . . . Flight . | . . . . . . . . . . . . . . . . . . . Fastest Speed 100 | 120 100 100 100 160 180 120 153 183 120 120 180 150 130 110 110 110 110 150 Average Speed 156 | 120 121 100 147 174 180 155 199 185 148 175 181 176 131 110 118 119 144 150 Slowest Speed 250 | 120 150 100 180 180 180 230 250 190 186 250 182 200 150 110 120 120 180 180 Overloaded Moves . | . . . . . . . . . . . . . . . . . . . Propulsion Burnouts . | . . . . . . . . . . . . . . . . . . . Robots Hopped . | . . . . . . . . . . . . . . . . . . . Cave-ins Triggered . | . . . . . . . . . . . . . . . . . . . Exploration Rate (%) 31 | 2 22 35 20 22 45 75 40 42 4 59 5 52 6 80 8 52 10 13 Regions Visited 18 Branch Regions 2 Pre-discovered Areas 3 | . . 2 . 1 . . . . . . . . . . . . . . Known Exits Taken 9 | . 1 . 1 1 . 1 . 1 1 . 1 . . . 1 . 1 . Unknown Exits Taken 2 | 1 . 1 . . . . . . . . . . . . . . . . Scrap Searched 1 | . . 1 . . . . . . . . . . . . . . . . Spaces Dug 12 | . . . . . . . . . . . 11 1 . . . . . . Terrain Destroyed 159 | . 4 . . . . 109 3 7 . 20 11 4 . . . . . 1 Melee 12 | . . . . . . . . . . . 11 1 . . . . . . Projectile 7 | . . . . . . 5 . . . 1 . . . . . . . 1 AOE 140 | . 4 . . . . 104 3 7 . 19 . 3 . . . . . . Actions | -11 -10 -10 -9 -9 -9 -8 -8 -8 -7 -7 -7 -7 -6 -6 -6 -6 -6 -6 --------- Run | Scr Mat Min Mat Sto Gar Mat Gar Mat Fac Gar Fac Gar Fac Was Fac Gar Fac Gar Total 6961 | . 215 131 321 264 262 1392 278 433 163 831 232 721 242 93 319 403 575 86 Wait 498 | . 40 . 32 15 . 185 3 24 . 90 3 31 10 . 6 5 53 1 Move 5195 | . 139 125 197 176 221 971 208 352 149 597 209 484 216 86 274 298 439 54 Hop . | . . . . . . . . . . . . . . . . . . . Pick Up 157 | . 15 1 12 7 4 27 11 8 3 16 2 25 2 3 4 9 8 . Fast Attach 65 | . 1 . 3 4 . 15 1 . 2 5 1 7 3 . 6 8 8 1 Attach 92 | . . 1 4 3 2 12 2 4 2 17 . 20 2 1 1 2 8 11 Detach 26 | . . . . 4 . 4 . . . 4 . 2 4 1 3 1 3 . Swap 74 | . 3 . 5 3 5 14 5 2 . 13 1 8 3 . . 3 7 2 Drop 113 | . 6 1 8 8 6 23 2 6 1 2 1 18 1 2 8 10 9 1 Fire 566 | . 11 3 44 43 20 141 28 37 6 65 1 64 . . 10 47 30 16 Melee 50 | . . . . . . . . . . 4 14 31 1 . . . . . Ram . | . . . . . . . . . . . . . . . . . . . Kick . | . . . . . . . . . . . . . . . . . . . Crush 17 | . . . 16 1 . . . . . . . . . . . . . . Escape Stasis 108 | . . . . . 4 . 18 . . 18 . 31 . . 7 20 10 . Rewire . | . . . . . . . . . . . . . . . . . . . Trap . | . . . . . . . . . . . . . . . . . . . Miscellaneous . | . . . . . . . . . . . . . . . . . . . Route ------- -11/Scrapyard -10/Materials (discovered 2 exits: *Min x2) -10/Mines -9/Materials (discovered 4 exits: Min x2 / *Sto x2) -9/Storage -9/Garrison -8/Materials (discovered 4 exits: *Fac x3 / Gar) -8/Garrison -8/Materials (discovered 3 exits: *Fac x3) -7/Factory (discovered 2 exits: *Fac / Gar) -7/Garrison (discovered 2 exits: *Fac x2) -7/Factory -7/Garrison (discovered 2 exits: *Fac x2) -6/Factory -6/Waste -6/Factory (discovered 2 exits: [*Low] / Gar) -6/Garrison (discovered 2 exits: *Fac x2) -6/Factory -6/Garrison History --------- Turn | Location | Event 1 | -11/Scrapyard | Discovered new exit (range 0) 1 | -11/Scrapyard | Entered Materials 38 | -10/Materials | Identified exit to Mines 268 | -10/Materials | Entered Mines 315 | -10/Mines | Learned location of Storage (-9) 317 | -10/Mines | Build established: Mutant 320 | -10/Mines | Assisted by bots powering up and referring to "LRC-V3" 365 | -10/Mines | Assembled infested the area 393 | -10/Mines | Discovered new exit (range 12) 404 | -10/Mines | Entered Materials 404 | -9/Materials | Evolved 2 slots: Utility x2 576 | -9/Materials | Lost 4 parts (1p2n1w) 584 | -9/Materials | Destroyed 9 combat bots 805 | -9/Materials | Discovered new exit (range 3) 839 | -9/Materials | Core integrity fell below 50% 852 | -9/Materials | Identified exit to Mines 852 | -9/Materials | Identified exit to Storage 881 | -9/Materials | Entered Storage 1046 | -9/Storage | Lost 3 parts (2n1w) 1194 | -9/Storage | Garrison activated, responded to threat 1351 | -9/Storage | Identified exit to Garrison 1351 | -9/Storage | Entered Garrison 1502 | -9/Garrison | Triggered checkpoint 1531 | -9/Garrison | Build established: Scavenger-Mutant 1589 | -9/Garrison | Discovered new exit (range 13) 1625 | -9/Garrison | Installed Relay Interface Framework 1690 | -9/Garrison | Triggered checkpoint 1734 | -9/Garrison | Garrison Relay disabled 1825 | -9/Garrison | Entered Materials 1825 | -8/Materials | Evolved 2 slots: Propulsion x1, Utility x1 2186 | -8/Materials | Lost 3 parts (1u2w) 2433 | -8/Materials | Lost 3 parts (1p1u1w) 2612 | -8/Materials | Discovered new exit (range 5) 3090 | -8/Materials | Discovered new exit (range 10) 3104 | -8/Materials | Identified exit to Factory 3105 | -8/Materials | Build established: Bothacker-Mutant 3537 | -8/Materials | Discovered exit to Factory (range 13) 3580 | -8/Materials | Core integrity fell below 50% 3767 | -8/Materials | Lost 3 parts (1n2w) 3799 | -8/Materials | Garrison activated, responded to threat 3982 | -8/Materials | Identified exit to Garrison 3987 | -8/Materials | Build established: Hauler-Mutant 3994 | -8/Materials | Entered Garrison 4006 | -8/Garrison | Expanded RIF knowledge: Zone Cloak 4078 | -8/Garrison | Triggered checkpoint 4100 | -8/Garrison | Garrison Relay disabled 4202 | -8/Garrison | Triggered checkpoint 4242 | -8/Garrison | Triggered checkpoint 4332 | -8/Garrison | Triggered checkpoint 4410 | -8/Garrison | Build established: Bothacker-Mutant 4426 | -8/Garrison | Garrison Relay disabled 4513 | -8/Garrison | Discovered new exit (range 9) 4530 | -8/Garrison | Entered Materials 4628 | -8/Materials | Core integrity fell below 20% 5106 | -8/Materials | Lost 3 parts (1p1n1w) 5313 | -8/Materials | Entered Factory 5313 | -7/Factory | Evolved 2 slots: Propulsion x1, Utility x1 5555 | -7/Factory | Discovered new exit (range 5) 5559 | -7/Factory | Identified exit to Garrison 5559 | -7/Factory | Entered Garrison 5612 | -7/Garrison | Triggered checkpoint 5621 | -7/Garrison | Triggered checkpoint 5643 | -7/Garrison | Triggered checkpoint 5649 | -7/Garrison | Triggered checkpoint 5689 | -7/Garrison | Destroyed 14 combat bots 5689 | -7/Garrison | Lost 7 parts (4n1u2w) 5816 | -7/Garrison | Discovered new exit (range 12) 5853 | -7/Garrison | Expanded RIF knowledge: Hotswap 5942 | -7/Garrison | Triggered checkpoint 5985 | -7/Garrison | Garrison Relay disabled 6136 | -7/Garrison | Triggered checkpoint 6146 | -7/Garrison | Garrison Relay disabled 6387 | -7/Garrison | Lost 8 parts (2p3n1u2w) 6550 | -7/Garrison | Spotted B-75 Beast 6553 | -7/Garrison | Assimilated Beast 4a with formatsys_high 6918 | -7/Garrison | Discovered new exit (range 10) 6936 | -7/Garrison | Entered Factory 6936 | -7/Factory | Accompanied by 1 ally 7144 | -7/Factory | Core integrity fell below 50% 7265 | -7/Factory | Identified exit to Garrison 7362 | -7/Factory | Entered Garrison 7362 | -7/Garrison | Accompanied by 1 ally 7441 | -7/Garrison | Lost 3 parts (1n1u1w) 7634 | -7/Garrison | Triggered checkpoint 7672 | -7/Garrison | Triggered checkpoint 7710 | -7/Garrison | Triggered checkpoint 7776 | -7/Garrison | Lost 4 parts (1p2n1u) 7850 | -7/Garrison | Garrison Relay disabled 7983 | -7/Garrison | Triggered checkpoint 8001 | -7/Garrison | Triggered checkpoint 8117 | -7/Garrison | Triggered checkpoint 8159 | -7/Garrison | Lost 3 parts (1p2w) 8165 | -7/Garrison | Core integrity fell below 20% 8166 | -7/Garrison | Triggered checkpoint 8272 | -7/Garrison | Triggered checkpoint 8319 | -7/Garrison | Lost 3 parts (2n1u) 8348 | -7/Garrison | Triggered checkpoint 8393 | -7/Garrison | Discovered new exit (range 14) 8581 | -7/Garrison | Discovered new exit (range 10) 8607 | -7/Garrison | Expanded RIF knowledge: Threat Obfuscation 8614 | -7/Garrison | Entered Factory 8614 | -6/Factory | Evolved 2 slots: Power x1, Weapon x1 8902 | -6/Factory | Build established: Botlord-Mutant 8925 | -6/Factory | Sucked down chute 8925 | -6/Factory | Entered Waste 8940 | -6/Waste | EMP discharged 8944 | -6/Waste | Spotted C-40 Crusher 8945 | -6/Waste | Spotted C-40 Crusher 8966 | -6/Waste | Spotted C-40 Crusher 8971 | -6/Waste | Spotted C-40 Crusher 8984 | -6/Waste | Spotted C-40 Crusher 8999 | -6/Waste | Spotted C-40 Crusher 9001 | -6/Waste | Discovered new exit (range 16) 9012 | -6/Waste | Crushed by Compactor (1 part destroyed) 9026 | -6/Waste | Entered Factory 9126 | -6/Factory | Discovered new exit (range 4) 9171 | -6/Factory | System corruption reached 10% 9413 | -6/Factory | Identified exit to Garrison 9413 | -6/Factory | Entered Garrison 9470 | -6/Garrison | Triggered checkpoint 9590 | -6/Garrison | Discovered new exit (range 8) 9605 | -6/Garrison | Expanded RIF knowledge: Signal Jamming 9655 | -6/Garrison | Triggered checkpoint 9655 | -6/Garrison | Garrison Relay disabled 9767 | -6/Garrison | Triggered checkpoint 9843 | -6/Garrison | Discovered new exit (range 10) 9874 | -6/Garrison | Triggered checkpoint 9930 | -6/Garrison | Garrison Relay disabled 9973 | -6/Garrison | Entered Factory 10636 | -6/Factory | Garrison activated, responded to threat 10804 | -6/Factory | Identified exit to Garrison 10804 | -6/Factory | Entered Garrison 10812 | -6/Garrison | Expanded RIF knowledge: Robot Detection 10908 | -6/Garrison | Core integrity fell below 50% 10920 | -6/Garrison | Spotted B-75 Beast 10940 | -6/Garrison | Core integrity fell below 20% 10948 | -6/Garrison | Destroyed by B-75 Beast with Heavy Machine Gun Last Messages --------------- Relay Coupler [Sentry] destroyed. Knocked back. Lrg. Storage Unit destroyed. Carbon-fiber Leg destroyed. S-27 Virus destroyed. Rnf. Antimatter Reactor destroyed. IXDXQJXPN8XCBWROZ//L Gatling Laser destroyed. Flexi-carbon Leg destroyed. Hvy. Plasma Cannon destroyed. Adv. Medium Treads destroyed. Acquired VTOL Module. Slug penetrates S-27 Virus. G-50 Soldier destroyed. S-27 Virus destroyed. Relay Coupler [Behemoth] destroyed. System corrupted: Coil Gun targeting data glitched. Coil Gun destroyed. Dropped Hcp. Storage Unit. Imp. Light Armor Plating destroyed. Map ----- +----------------------------------------------------+ | ?????????????????????????????????????????????????? | | ?????????????????????????????????????????????????? | | ?????????????????????????????????????????????????? | | ?????????????????????????????????????????????????? | | ????????????????????????????????????????#####????? | | ???????????????????????????????ggg??????#"""#????? | | ????????????????????????????????????????#" "#????? | | ????????????????????????????????????????#" "#????? | | ????????????????????????????????????????#" "#????? | | ????????????????????????????????????????## ##????? | | ????????????????????????????????????????# #????? | | ????????????????????????????????######### #????? | | ????????????????????????????????# #????? | | ????????????????????????????????# #????? | | ????????????????????????????????# *##########????? | | ????????????????????????????????#= ##????????????? | | ????????????????????????????????# = #????????????? | | ????????????????????????????????# ##????????????? | | ??????????????????????????# ##### #?????????????? | | ??????????????????????????# #?????????????? | | ??????????????????????????####### #?????????????? | | ????????????????????????????????# #?????????????? | | ????????????????????????????????# #?????????????? | | ????????????????????????????????# #?????????????? | | ?????????????????????######+##### #############!! | | ??????????????????####%%%@!%! s | | ??????????????????# +[[%*=! s | | ??????????????????# ##s=g%#!##### #############!! | | ?????????????????????# ;####???# #?????????????? | | ?????????????????????# ;???????# #?????????????? | | ?????????????????????# ;???????# #?????????????? | | ?????????????????????#BB#???????# #?????????????? | | ?????????????????????#BB#???????# #?????????????? | | ?????????????????????; #???????# #?????????????? | | ???????????????????? ????????# #?????????????? | | ???????????????????? ???????? #?????????????? | | ??????????????????? ???????? #?????????????? | | ??????????????????? ## ????????####?????????????? | | ?????????????????? ?# ?????????????????????????? | | ?????????????????? ?? ?????????????????????????? | | ?????????????????????? ?????????????????????????? | | ?????????????????????????????????????????????????? | | ?????????????????????????????????????????????????? | | ?????????????????????????????????????????????????? | | ?????????????????????????????????????????????????? | | ?????????????????????????????????????????????????? | | ?????????????????????????????????????????????????? | | ?????????????????????????????????????????????????? | | ?????????????????????????????????????????????????? | | ?????????????????????????????????????????????????? | +----------------------------------------------------+ Best States ------------- Heat Dissipation 56 Energy Generation 34 Energy Capacity 535 Matter Stores 300 Matter Capacity 300 Sight Range 22 Terrain Scan Density 10 Armor Coverage 600 Resistance: TH 15 Resistance: EM 15 Evasion (%) 40 Targeting Accuracy 16 Recoil Reduction 4 Salvage Targeting 2 Offensive Hacking 10 Item Schematics ----------------- Imp. EM Shotgun | -8/Materials | Scanalyzed Robot Schematics ------------------ None Fabricated ------------ Nothing Alien Tech Used ----------------- None Achievements -------------- None Challenges ------------ None Game ------ Seed EnhancedSniperGun Manual? 0 Play Time 01:40:16 Cumulative 188.5 hours Start 2020.08.29 @ 16:19:01 End 2020.08.29 @ 18:16:34 Sessions 1 Manual Loads 0 Difficulty Rogue Special Mode None Game No. 211 Rogue 211 Adventurer 0 Explorer 0 Win Type - Total 7 Types 5/0/2/0/0/0/0 Lore% 74 Gallery% 82 Achievement% 60 Wizard Run 0 Options --------- ASCII 0 Keyboard 1 Movement Numpad Keybinds 0 Fullscreen 1 Font 20/SmallcapsGlow Map View 66x50 Tactical HUD 1 Map Filters NONE Filters NONE Steam 1 RUN: 7266a70c-7a8f-4940-be75-cdb72475670f